fUST/lending_fUST_20250823
["ID","MTS","AMOUNT","RATE_DAILY","PERIOD"]
[381026932,1755955832013,-500.0,0.0002036,2]
[381026933,1755955832023,-500.0,0.0002036,2]
[381026936,1755955832033,-500.0,0.0002036,2]
[381026937,1755955832042,-500.0,0.0002036,2]
[381026939,1755955832055,-500.0,0.0002036,2]
[381026942,1755955832064,-465.54612796,0.0002036,2]
[381026944,1755955832074,-500.0,0.0002036,2]
[381026946,1755955832083,-500.0,0.0002036,2]
[381026947,1755955832092,-500.0,0.0002036,2]
[381026949,1755955832102,-500.0,0.0002036,2]
[381026952,1755955832111,-500.0,0.0002036,2]
[381026954,1755955832121,-500.0,0.0002036,2]
[381026956,1755955832130,-500.0,0.0002036,2]
[381026957,1755955832139,-500.0,0.0002036,2]
[381026959,1755955832148,-500.0,0.0002036,2]
[381026960,1755955832158,-500.0,0.0002036,2]
[381026961,1755955832167,-500.0,0.0002036,2]
[381026962,1755955832177,-496.62576032,0.0002036,2]
[381026963,1755955832187,-500.0,0.0002036,2]
[381026964,1755955832197,-500.0,0.0002036,2]
[381026965,1755955832207,-500.0,0.0002036,2]
[381026966,1755955832217,-500.0,0.0002036,2]
[381026967,1755955832227,-500.0,0.0002036,2]
[381026968,1755955832236,-269.29039155,0.0002036,2]
[381026969,1755955832246,-500.0,0.0002036,2]
[381026970,1755955832258,-500.0,0.0002036,2]
[381026971,1755955832267,-500.0,0.0002036,2]
[381026972,1755955832277,-500.0,0.0002036,2]
[381026974,1755955832286,-500.0,0.0002036,2]
[381026975,1755955832296,-500.0,0.0002036,2]
[381026976,1755955832308,-500.0,0.0002036,2]
[381026977,1755955832318,-500.0,0.0002036,2]
[381026979,1755955832328,-500.0,0.0002036,2]
[381026980,1755955832338,-500.0,0.0002036,2]
[381026981,1755955832348,-500.0,0.0002036,2]
[381026983,1755955832358,-504.56976723,0.0002036,2]
[381026984,1755955832378,-300.0,0.0002036,2]
[381026985,1755955832388,-500.0,0.0002036,2]
[381026986,1755955832399,-500.0,0.0002036,2]
[381026988,1755955832410,-500.0,0.0002036,2]
[381026990,1755955832420,-500.0,0.0002036,2]
[381026992,1755955832430,-500.0,0.0002036,2]
[381026993,1755955832440,-500.0,0.0002036,2]
[381026994,1755955832450,-500.0,0.0002036,2]
[381026996,1755955832460,-500.0,0.0002036,2]
[381026997,1755955832471,-500.0,0.0002036,2]
[381026998,1755955832480,-500.0,0.0002036,2]
[381026999,1755955832490,-500.0,0.0002036,2]
[381027000,1755955832500,-500.0,0.0002036,2]
[381027001,1755955832509,-500.0,0.0002036,2]
[381027002,1755955832519,-500.0,0.0002036,2]
[381027003,1755955832530,-500.0,0.0002036,2]
[381027004,1755955832540,-500.0,0.0002036,2]
[381027005,1755955832554,-500.0,0.0002036,2]
[381027006,1755955832564,-500.0,0.0002036,2]
[381027007,1755955832575,-500.0,0.0002036,2]
[381027008,1755955832584,-500.0,0.0002036,2]
[381027009,1755955832594,-500.0,0.0002036,2]
[381027010,1755955832603,-500.0,0.0002036,2]
[381027011,1755955832613,-500.0,0.0002036,2]
[381027012,1755955832624,-500.0,0.0002036,2]
[381027013,1755955832633,-561.98807204,0.0002036,2]
[381027014,1755955832643,-500.0,0.0002036,2]
[381027015,1755955832652,-500.0,0.0002036,2]
[381027016,1755955832662,-500.0,0.0002036,2]
[381027017,1755955832672,-500.0,0.0002036,2]
[381027018,1755955832683,-500.0,0.0002036,2]
[381027019,1755955832692,-500.0,0.0002036,2]
[381027020,1755955832702,-500.0,0.0002036,2]
[381027021,1755955832711,-500.0,0.0002036,2]
[381027022,1755955832721,-500.0,0.0002036,2]
[381027023,1755955832731,-390.36012737,0.0002036,2]
[381027024,1755955832740,-500.0,0.0002036,2]
[381027025,1755955832749,-500.0,0.0002036,2]
[381027026,1755955832758,-500.0,0.0002036,2]
[381027027,1755955832768,-465.81134982,0.0002036,2]
[381027028,1755955832777,-500.0,0.0002036,2]
[381027029,1755955832787,-500.0,0.0002036,2]
[381027030,1755955832797,-500.0,0.0002036,2]
[381027031,1755955832808,-499.99999999,0.0002036,2]
[381027032,1755955832818,-500.0,0.0002036,2]
[381027033,1755955832828,-500.0,0.0002036,2]
[381027034,1755955832837,-500.0,0.0002036,2]
[381027035,1755955832847,-500.0,0.0002036,2]
[381027036,1755955832856,-500.0,0.0002036,2]
[381027037,1755955832865,-500.0,0.0002036,2]
[381027038,1755955832874,-500.0,0.0002036,2]
[381027039,1755955832883,-500.0,0.0002036,2]
[381027040,1755955832894,-500.0,0.0002036,2]
[381027041,1755955832903,-500.0,0.0002036,2]
[381027042,1755955832912,-500.0,0.0002036,2]
[381027043,1755955832922,-500.0,0.0002036,2]
[381027044,1755955832931,-500.0,0.0002036,2]
[381027045,1755955832940,-500.0,0.0002036,2]
[381027046,1755955832950,-500.0,0.0002036,2]
[381027047,1755955832959,-500.0,0.0002036,2]
[381027048,1755955832968,-500.0,0.0002036,2]
[381027049,1755955832978,-500.0,0.0002036,2]
[381027050,1755955832987,-500.0,0.0002036,2]
[381027051,1755955832996,-500.0,0.0002036,2]
[381027052,1755955833006,-236.48717629,0.0002036,2]
[381027053,1755955833015,-270.30858655,0.0002036,2]
[381027054,1755955833025,-500.0,0.0002036,2]
[381027055,1755955833035,-500.0,0.0002036,2]
[381027056,1755955833045,-500.0,0.0002036,2]
[381027057,1755955833057,-500.0,0.0002036,2]
[381027058,1755955833067,-500.0,0.0002036,2]
[381027059,1755955833076,-500.0,0.0002036,2]
[381027060,1755955833086,-500.0,0.0002036,2]
[381027061,1755955833096,-402.99999998,0.0002036,2]
[381027062,1755955833106,-107667.79448262,0.00020361,2]
[381027063,1755955833120,-429.14,0.00020361,2]
[381027064,1755955833136,-362.76646767,0.00020361,2]
[381027065,1755955833148,-475.02732027,0.00020361,2]
[381027066,1755955833160,-2321.4011607,0.00020361,2]
[381027072,1755955837735,-22193.63027443,0.00020361,2]
[381027073,1755955837790,-40689.43337548,0.00020361,2]
[381027074,1755955837800,-500.5836322,0.00020373,2]
[381027075,1755955837811,-606.96491219,0.00020373,2]
[381027077,1755955837821,-500.0,0.00020373,2]
[381027078,1755955837830,-500.0,0.00020373,2]
[381027079,1755955837840,-500.0,0.00020373,2]
[381027080,1755955837849,-500.0,0.00020373,2]
[381027081,1755955837859,-502.97411573,0.00020373,2]
[381027082,1755955837869,-500.0,0.00020373,2]
[381027083,1755955837878,-500.0,0.00020373,2]
[381027084,1755955837888,-500.0,0.00020373,2]
[381027086,1755955837898,-500.0,0.00020373,2]
[381027088,1755955837907,-500.0,0.00020373,2]
[381027089,1755955837916,-501.13122225,0.00020373,2]
[381027091,1755955837925,-500.0,0.00020373,2]
[381027093,1755955837934,-500.0,0.00020373,2]
[381027095,1755955837944,-500.0,0.00020373,2]
[381027097,1755955837953,-500.0,0.00020373,2]
[381027098,1755955837963,-158.38051669,0.00020373,2]
[381027099,1755955837972,-500.0,0.00020373,2]
[381027101,1755955837981,-500.0,0.00020373,2]
[381027103,1755955837991,-500.0,0.00020373,2]
[381027105,1755955838000,-1000.0,0.00020921,2]
[381027107,1755955838009,-1000.0,0.00020921,2]
[381027108,1755955838018,-1000.0,0.00020921,2]
[381027110,1755955838028,-1001.65704101,0.00020921,2]
[381027111,1755955838037,-500.0,0.00020921,2]
[381027112,1755955838046,-908.65597249,0.00020921,2]
[381027113,1755955838055,-1000.0,0.00020921,2]
[381027114,1755955838067,-273.35986992,0.00020921,2]
[381027115,1755955838077,-1000.0,0.00020921,2]
[381027116,1755955838087,-1500.0,0.00021468,2]
[381027117,1755955838100,-1500.0,0.00021468,2]
[381027118,1755955838109,-600.56592504,0.00021468,2]
[381027119,1755955838119,-1500.0,0.00021468,2]
[381027120,1755955838128,-1500.0,0.00021468,2]
[381027121,1755955838138,-346.39652167,0.00021703,2]
[381027122,1755955838147,-354.46,0.00021721,3]
[381027123,1755955838156,-2970.24,0.00021721,3]
[381027124,1755955838166,-1485.12,0.00021721,3]
[381027125,1755955838176,-742.56,0.00021721,3]
[381027126,1755955838185,-371.28,0.00021721,3]
[381027127,1755955838195,-1060.87790849,0.00021866,2]
[381027128,1755955838204,-1698.15,0.00021917,2]
[381027129,1755955838214,-1099.87,0.00022,7]
[381027130,1755955838224,-4026.08,0.000221,7]
[381027131,1755955838233,-374.0,0.00022151,2]
[381027132,1755955838242,-150.68,0.000222,7]
[381027133,1755955838252,-221.0329258,0.0002249,2]
[381027134,1755955838261,-500.0,0.00023133,2]
[381027135,1755955838269,-346.39652167,0.00023146,2]
[381027136,1755955838279,-796.051,0.00023407,3]
[381027137,1755955838288,-160.0,0.00023407,3]
[381027138,1755955838297,-215.94678008,0.00023407,3]
[381027139,1755955838307,-417.15472785,0.00023407,3]
[381027140,1755955838317,-529.05847148,0.00023407,3]
[381027141,1755955838326,-232.37252479,0.00023407,3]
[381027142,1755955838335,-217.0334113,0.00023407,3]
[381027143,1755955838345,-160.0,0.00023407,3]
[381027144,1755955838354,-844.50316758,0.00023407,3]
[381027145,1755955838364,-304.7012274,0.00023885,2]
[381027146,1755955838374,-1698.15,0.00024109,4]
[381027147,1755955838383,-221.0329258,0.00024216,2]
[381027148,1755955838393,-346.39652167,0.00024589,2]
[381027149,1755955838402,-1149.51482112,0.000248,2]
[381027150,1755955838412,-168.86438508,0.00024818,2]
[381027151,1755955838421,-686.47183121,0.00024818,2]
[381027152,1755955838430,-24450.0940652,0.000249,2]
[381027153,1755955838440,-7264.13594111,0.00025,2]
[381027154,1755955838449,-193.0,0.00025,7]
[381027155,1755955838458,-675.4575403,0.00025256,2]
[381027156,1755955838467,-500.0,0.0002528,2]
[381027157,1755955838477,-500.0,0.0002528,2]
[381027158,1755955838486,-500.0,0.0002528,2]
[381027159,1755955838495,-500.0,0.0002528,2]
[381027160,1755955838505,-500.0,0.0002528,2]
[381027161,1755955838514,-500.0,0.0002528,2]
[381027162,1755955838523,-162.00307087,0.0002528,2]
[381027163,1755955838533,-151.94576417,0.0002528,2]
[381027164,1755955838543,-500.0,0.0002528,2]
[381027165,1755955838553,-500.0,0.0002528,2]
[381027166,1755955838562,-500.0,0.0002528,2]
[381027167,1755955838571,-500.0,0.0002528,2]
[381027168,1755955838582,-500.0,0.0002528,2]
[381027169,1755955838592,-258.92281385,0.0002528,2]
[381027170,1755955838602,-231.94355464,0.0002528,2]
[381027171,1755955838611,-500.0,0.0002528,2]
[381027172,1755955838622,-500.0,0.0002528,2]
[381027173,1755955838632,-500.0,0.0002535,2]
[381027174,1755955838641,-500.88476791,0.0002535,2]
[381027175,1755955838651,-502.6565379,0.0002535,2]
[381027176,1755955838660,-160.0,0.000256,2]
[381027177,1755955838670,-1519.77946568,0.00025694,2]
[381027178,1755955838680,-150.75,0.00025775,7]
[381027179,1755955838689,-1845.71610386,0.00025805,2]
[381027180,1755955838699,-500.0,0.00025828,2]
[381027181,1755955838708,-500.0,0.00025828,2]
[381027182,1755955838717,-500.0,0.00025828,2]
[381027183,1755955838727,-500.99527852,0.00025828,2]
[381027184,1755955838736,-500.0,0.00025828,2]
[381027185,1755955838745,-500.0,0.00025828,2]
[381027186,1755955838755,-500.0,0.00025828,2]
[381027187,1755955838764,-344.40648147,0.00025828,2]
[381027188,1755955838773,-505.92074384,0.00025828,2]
[381027189,1755955838782,-500.0,0.00025828,2]
[381027190,1755955838792,-502.70577595,0.00025898,2]
[381027191,1755955838801,-500.0,0.00025899,2]
[381027192,1755955838812,-221.0329258,0.00025943,4]
[381027193,1755955838822,-331.54938898,0.00025943,4]
[381027194,1755955838831,-17768.5118975,0.0002599,2]
[381027195,1755955838841,-54136.47095147,0.00026,30]
[381027196,1755955838851,-844.50316758,0.00026,30]
[381027197,1755955838861,-346.39652167,0.00026032,2]
[381027198,1755955838870,-2701.83016121,0.00026132,2]
[381027199,1755955838879,-300.0,0.00026148,2]
[381027200,1755955838889,-1698.15,0.00026301,6]
[381027201,1755955838898,-2745.88732483,0.00026352,2]
[381027202,1755955838915,-4221.6096269,0.00026571,2]
[381027203,1755955838924,-502.68849598,0.00026573,2]
[381027204,1755955838933,-1099.87,0.000266,7]
[381027205,1755955838943,-500.0,0.00026773,2]
[381027206,1755955838952,-500.0,0.00026773,2]
[381027207,1755955838961,-500.0,0.00026773,2]
[381027208,1755955838970,-500.0,0.00026773,2]
[381027209,1755955838979,-500.0,0.00026773,2]
[381027210,1755955838988,-500.0,0.00026773,2]
[381027211,1755955838998,-272.03482203,0.00026773,2]
[381027212,1755955839007,-502.57071743,0.00026773,2]
[381027213,1755955839016,-500.0,0.00026773,2]
[381027214,1755955839025,-500.0,0.00026773,2]
[381027215,1755955839036,-500.0,0.00026773,2]
[381027216,1755955839045,-500.0,0.00026773,2]
[381027217,1755955839054,-500.0,0.00026773,2]
[381027218,1755955839064,-316.02691246,0.00026773,2]
[381027219,1755955839074,-500.0,0.00026773,2]
[381027220,1755955839083,-500.0,0.00026773,2]
[381027221,1755955839093,-350.34236272,0.00026773,2]
[381027222,1755955839102,-500.0,0.00026773,2]
[381027223,1755955839111,-500.0,0.00026773,2]
[381027224,1755955839121,-500.0,0.00026773,2]
[381027225,1755955839130,-207.35869563,0.00026773,2]
[381027226,1755955839139,-500.0,0.00026773,2]
[381027227,1755955839149,-500.0,0.00026773,2]
[381027228,1755955839158,-500.0,0.00026773,2]
[381027229,1755955839167,-500.0,0.00026773,2]
[381027230,1755955839177,-500.0,0.00026789,2]
[381027231,1755955839186,-500.0,0.00026789,2]
[381027232,1755955839196,-283.37776722,0.00026789,2]
[381027233,1755955839205,-32600.1254203,0.0002679,2]
[381027234,1755955839215,-1532.68642816,0.0002679,2]
[381027235,1755955839223,-683.57772919,0.000268,2]
[381027236,1755955839233,-370000.0,0.000268,2]
[381027237,1755955839242,-15545.0,0.000268,2]
[381027238,1755955839251,-3776.05215179,0.000268,3]
[381027239,1755955839262,-1046.892911,0.000268,7]
[381027240,1755955839272,-1046.892911,0.000268,7]
[381027241,1755955839282,-2393.984874,0.000268,7]
[381027242,1755955839292,-500.494229,0.000268,7]
[381027243,1755955839302,-1046.892911,0.000268,7]
[381027244,1755955839313,-2393.984874,0.000268,7]
[381027245,1755955839322,-500.494229,0.000268,7]
[381027246,1755955839331,-1046.892911,0.000268,7]
[381027247,1755955839341,-500.494229,0.000268,7]
[381027248,1755955839350,-2393.984874,0.000268,7]
[381027249,1755955839360,-151.0,0.000268,7]
[381027250,1755955839370,-2393.984874,0.000268,7]
[381027251,1755955839379,-500.494229,0.000268,7]
[381027253,1755955839492,-151.0,0.000268,7]
[381027254,1755955839502,-151.0,0.000268,7]
[381027255,1755955839512,-284.320927,0.000268,7]
[381027256,1755955839522,-158.087291,0.000268,7]
[381027257,1755955839531,-151.0,0.000268,7]
[381027258,1755955839541,-284.320927,0.000268,7]
[381027259,1755955839552,-151.0,0.000268,7]
[381027260,1755955839562,-284.320927,0.000268,7]
[381027261,1755955839571,-284.320927,0.000268,7]
[381027263,1755955839582,-400.759768,0.000268,7]
[381027264,1755955839592,-400.759768,0.000268,7]
[381027265,1755955839601,-400.759768,0.000268,7]
[381027266,1755955839611,-400.759768,0.000268,7]
[381027267,1755955839622,-151.0,0.000268,7]
[381027268,1755955839632,-151.0,0.000268,7]
[381027269,1755955839641,-151.0,0.000268,7]
[381027270,1755955839651,-269.854224,0.000268,7]
[381027271,1755955839660,-151.0,0.000268,7]
[381027272,1755955839670,-151.894825,0.000268,7]
[381027273,1755955839680,-151.0,0.000268,7]
[381027274,1755955839689,-151.0,0.000268,7]
[381027275,1755955839699,-151.0,0.000268,7]
[381027277,1755955839709,-173.49018429,0.00026808,2]
[381027279,1755955839718,-20375.0783877,0.00026898,2]
[381027281,1755955839728,-957.9290176,0.00026898,2]
[381027283,1755955839738,-173568.99181775,0.00026908,2]
[381027285,1755955839747,-151.0,0.00026908,7]
[381027287,1755955839757,-151.0,0.00026908,7]
[381027289,1755955839766,-151.0,0.00026908,7]
[381027291,1755955839776,-151.0,0.00026908,7]
[381027293,1755955839785,-151.0,0.00026908,7]
[381027295,1755955839795,-151.0,0.00026908,7]
[381027297,1755955839805,-274.233352,0.00026908,7]
[381027299,1755955839816,-151.426035,0.00026908,7]
[381027301,1755955839826,-151.0,0.00026908,7]
[381027303,1755955839835,-151.0,0.00026908,7]
[381027305,1755955839845,-151.0,0.00026908,7]
[381027307,1755955839854,-151.0,0.00026908,7]
[381027309,1755955839863,-151.0,0.00026908,7]
[381027311,1755955839872,-151.0,0.00026908,7]
[381027313,1755955839882,-151.0,0.00026908,7]
[381027315,1755955839891,-151.0,0.00026908,7]
[381027317,1755955839900,-151.0,0.00026908,7]
[381027319,1755955839909,-151.0,0.00026908,7]
[381027321,1755955839918,-151.0,0.00026908,7]
[381027323,1755955839928,-151.0,0.00026908,7]
[381027325,1755955839937,-151.0,0.00026908,7]
[381027327,1755955839947,-151.0,0.00026908,7]
[381027329,1755955839956,-151.0,0.00026908,7]
[381027331,1755955839966,-151.0,0.00026908,7]
[381027333,1755955839975,-151.0,0.00026908,7]
[381027335,1755955839984,-166.159005,0.00026908,7]
[381027337,1755955839993,-166.159005,0.00026908,7]
[381027339,1755955840003,-166.159005,0.00026908,7]
[381027341,1755955840012,-151.0,0.00026908,7]
[381027343,1755955840022,-166.159005,0.00026908,7]
[381027345,1755955840031,-151.0,0.00026908,7]
[381027347,1755955840040,-151.0,0.00026908,7]
[381027349,1755955840049,-151.0,0.00026908,7]
[381027351,1755955840059,-151.0,0.00026908,7]
[381027353,1755955840068,-151.0,0.00026908,7]
[381027355,1755955840077,-151.0,0.00026908,7]
[381027357,1755955840087,-151.0,0.00026908,7]
[381027359,1755955840096,-151.0,0.00026908,7]
[381027361,1755955840105,-151.0,0.00026908,7]
[381027363,1755955840115,-284.309078,0.00026908,7]
[381027365,1755955840124,-151.0,0.00026908,7]
[381027367,1755955840133,-151.0,0.00026908,7]
[381027369,1755955840143,-151.0,0.00026908,7]
[381027371,1755955840152,-151.0,0.00026908,7]
[381027373,1755955840163,-151.231728,0.00026908,7]
[381027375,1755955840172,-151.0,0.00026908,7]
[381027377,1755955840182,-151.0,0.00026908,7]
[381027379,1755955840191,-151.0,0.00026908,7]
[381027381,1755955840201,-151.0,0.00026908,7]
[381027383,1755955840211,-151.0,0.00026908,7]
[381027384,1755955840220,-151.0,0.00026908,7]
[381027386,1755955840230,-151.0,0.00026908,7]
[381027389,1755955840240,-171.435192,0.00026908,7]
[381027391,1755955840249,-171.435192,0.00026908,7]
[381027392,1755955840258,-171.435192,0.00026908,7]
[381027394,1755955840268,-171.435192,0.00026908,7]
[381027397,1755955840278,-177.066484,0.00026908,7]
[381027399,1755955840288,-177.066484,0.00026908,7]
[381027401,1755955840297,-177.066484,0.00026908,7]
[381027403,1755955840306,-177.066484,0.00026908,7]
[381027404,1755955840317,-154.040978,0.00026908,7]
[381027406,1755955840326,-151.0,0.00026908,7]
[381027409,1755955840336,-151.0,0.00026908,7]
[381027410,1755955840346,-151.0,0.00026908,7]
[381027413,1755955840356,-335.129146,0.00026908,7]
[381027414,1755955840365,-151.0,0.00026908,7]
[381027415,1755955840374,-151.0,0.00026908,7]
[381027416,1755955840383,-151.0,0.00026908,7]
[381027417,1755955840393,-335.129146,0.00026908,7]
[381027418,1755955840403,-151.0,0.00026908,7]
[381027419,1755955840413,-323.623482,0.00026908,7]
[381027420,1755955840422,-335.129146,0.00026908,7]
[381027421,1755955840432,-481.941728,0.00026908,7]
[381027422,1755955840441,-151.0,0.00026908,7]
[381027423,1755955840451,-323.623482,0.00026908,7]
[381027424,1755955840460,-323.623482,0.00026908,7]
[381027425,1755955840470,-335.129146,0.00026908,7]
[381027426,1755955840479,-481.941728,0.00026908,7]
[381027427,1755955840488,-152.669651,0.00026908,7]
[381027428,1755955840499,-323.623482,0.00026908,7]
[381027429,1755955840508,-481.941728,0.00026908,7]
[381027430,1755955840518,-644.125751,0.00026908,7]
[381027431,1755955840527,-481.941728,0.00026908,7]
[381027432,1755955840544,-151.0,0.00026908,7]
[381027433,1755955840561,-644.125751,0.00026908,7]
[381027434,1755955840571,-644.125751,0.00026908,7]
[381027436,1755955840583,-644.125751,0.00026908,7]
[381027438,1755955840592,-151.0,0.00026908,7]
[381027440,1755955840601,-151.0,0.00026908,7]
[381027442,1755955840610,-151.0,0.00026908,7]
[381027444,1755955840620,-151.0,0.00026908,7]
[381027446,1755955840630,-167.45745,0.00026908,7]
[381027448,1755955840640,-167.45745,0.00026908,7]
[381027450,1755955840649,-167.45745,0.00026908,7]
[381027452,1755955840658,-160.0,0.00026908,7]
[381027454,1755955840667,-167.45745,0.00026908,7]
[381027456,1755955840677,-154.943926,0.00026908,7]
[381027458,1755955840686,-154.943926,0.00026908,7]
[381027460,1755955840696,-658.019203,0.00026908,7]
[381027462,1755955840705,-154.943926,0.00026908,7]
[381027464,1755955840714,-658.019203,0.00026908,7]
[381027466,1755955840723,-154.943926,0.00026908,7]
[381027468,1755955840732,-658.019203,0.00026908,7]
[381027470,1755955840741,-658.019203,0.00026908,7]
[381027472,1755955840750,-202.721479,0.00026908,7]
[381027474,1755955840760,-202.721479,0.00026908,7]
[381027476,1755955840769,-162.284382,0.00026908,7]
[381027478,1755955840778,-202.721479,0.00026908,7]
[381027480,1755955840787,-162.284382,0.00026908,7]
[381027482,1755955840796,-202.721479,0.00026908,7]
[381027484,1755955840806,-162.284382,0.00026908,7]
[381027486,1755955840815,-151.0,0.00026908,7]
[381027488,1755955840824,-162.284382,0.00026908,7]
[381027490,1755955840834,-151.0,0.00026908,7]
[381027492,1755955840843,-151.0,0.00026908,7]
[381027494,1755955840852,-610.432913,0.00026908,7]
[381027496,1755955840861,-610.432913,0.00026908,7]
[381027498,1755955840870,-610.432913,0.00026908,7]
[381027500,1755955840879,-868.120932,0.00026908,7]
[381027502,1755955840888,-610.432913,0.00026908,7]
[381027504,1755955840897,-868.120932,0.00026908,7]
[381027506,1755955840906,-868.120932,0.00026908,7]
[381027508,1755955840916,-868.120932,0.00026908,7]
[381027509,1755955840926,-151.0,0.00026908,7]
[381027511,1755955840935,-3605.770361,0.00026908,7]
[381027513,1755955840944,-151.0,0.00026908,7]
[381027515,1755955840954,-3605.770361,0.00026908,7]
[381027517,1755955840963,-3605.770361,0.00026908,7]
[381027519,1755955840972,-3605.770361,0.00026908,7]
[381027521,1755955840982,-151.0,0.00026908,7]
[381027523,1755955840991,-151.0,0.00026908,7]
[381027525,1755955841000,-151.0,0.00026908,7]
[381027527,1755955841010,-151.0,0.00026908,7]
[381027529,1755955841019,-151.635013,0.00026908,7]
[381027531,1755955841028,-151.0,0.00026908,7]
[381027533,1755955841038,-417.15472785,0.00026908,7]
[381027535,1755955841047,-207.999342,0.00026908,7]
[381027537,1755955841056,-151.0,0.00026908,7]
[381027539,1755955841066,-207.999342,0.00026908,7]
[381027541,1755955841076,-207.999342,0.00026908,7]
[381027543,1755955841085,-207.999342,0.00026908,7]
[381027545,1755955841094,-529.05847148,0.00026908,7]
[381027547,1755955841103,-232.37252479,0.00026908,7]
[381027549,1755955841112,-151.0,0.00026908,7]
[381027551,1755955841121,-289.402616,0.00026908,7]
[381027553,1755955841130,-289.402616,0.00026908,7]
[381027555,1755955841139,-289.402616,0.00026908,7]
[381027557,1755955841149,-289.402616,0.00026908,7]
[381027559,1755955841158,-223.020353,0.00026908,7]
[381027561,1755955841167,-217.0334113,0.00026908,7]
[381027563,1755955841176,-194.80245,0.00026908,7]
[381027565,1755955841188,-160.0,0.00026908,7]
[381027566,1755955841202,-194.80245,0.00026908,7]
[381027569,1755955841211,-194.80245,0.00026908,7]
[381027570,1755955841221,-194.80245,0.00026908,7]
[381027573,1755955841231,-151.0,0.00026908,7]
[381027575,1755955841240,-1046.892911,0.00026908,7]
[381027577,1755955841249,-151.0,0.00026908,7]
[381027579,1755955841259,-1046.892911,0.00026908,7]
[381027580,1755955841268,-2393.984874,0.00026908,7]
[381027582,1755955841277,-500.494229,0.00026908,7]
[381027584,1755955841286,-151.0,0.00026908,7]
[381027586,1755955841296,-1046.892911,0.00026908,7]
[381027588,1755955841305,-2393.984874,0.00026908,7]
[381027590,1755955841315,-500.494229,0.00026908,7]
[381027592,1755955841324,-1046.892911,0.00026908,7]
[381027594,1755955841333,-500.494229,0.00026908,7]
[381027596,1755955841343,-2393.984874,0.00026908,7]
[381027598,1755955841352,-151.0,0.00026908,7]
[381027610,1755955841361,-2393.984874,0.00026908,7]
[381027613,1755955841464,-927.772607,0.00026908,7]
[381027615,1755955841474,-500.494229,0.00026908,7]
[381027617,1755955841483,-151.0,0.00026908,7]
[381027619,1755955841492,-927.772607,0.00026908,7]
[381027621,1755955841502,-257.043807,0.00026908,7]
[381027623,1755955841511,-927.772607,0.00026908,7]
[381027625,1755955841520,-927.772607,0.00026908,7]
[381027627,1755955841529,-151.0,0.00026908,7]
[381027629,1755955841543,-151.0,0.00026908,7]
[381027631,1755955841552,-284.320927,0.00026908,7]
[381027633,1755955841562,-151.0,0.00026908,7]
[381027635,1755955841571,-284.320927,0.00026908,7]
[381027637,1755955841582,-151.0,0.00026908,7]
[381027639,1755955841591,-284.320927,0.00026908,7]
[381027641,1755955841600,-284.320927,0.00026908,7]
[381027643,1755955841611,-400.759768,0.00026908,7]
[381027645,1755955841620,-844.50316758,0.00026908,7]
[381027647,1755955841630,-400.759768,0.00026908,7]
[381027649,1755955841639,-400.759768,0.00026908,7]
[381027651,1755955841648,-400.759768,0.00026908,7]
[381027653,1755955841658,-181.859024,0.00026908,7]